[Event "Marienbad B2-IM 2024"]
[Site "Marianske Lazne"]
[Date "2024.01.16"]
[Round "4.18"]
[White "Ivanov, Mike"]
[Black "Luberanski, Jakub"]
[Result "1-0"]
[ECO "A14"]
[WhiteElo "2356"]
[BlackElo "2278"]
[Annotator "RC"]
[PlyCount "97"]
[EventDate "2024.01.10"]
[EventType "tourn"]
[EventCountry "CZE"]
[SourceTitle "playchess.com"]
[Source "ChessBase"]
[SourceQuality "1"]
[TimeControl "40/5400+30:1800+30"]

1. Nf3 {[%emt 0:00:12]} Nf6 {[%emt 0:00:08]} 2. c4 {[%emt 0:00:30]} e6 {[%emt 0:00:05]} 3. g3 {[%emt 0:00:19]} d5 {[%emt 0:00:05]} 4. Bg2 {[%emt 0:00:16]} Be7 {[%emt 0:00:22]} 5. O-O {[%emt 0:00:20]} O-O {[%emt 0:00:03]} 6. d3 {[%emt 0:00:15]} c5 {[%emt 0:01:28]} 7. cxd5 {[%emt 0:00:35]} exd5 {[%emt 0:00:06]} 8. d4 {[%emt 0:00:07]} Nc6 {[%emt 0:00:05]} 9. Nc3 {[%emt 0:00:30]} Bg4 {[%emt 0:05:50]} 10. dxc5 {[%emt 0:11:51]} Bxc5 {[%emt 0:03:25]} 11. Bg5 {[%emt 0:01:24]} d4 {[%emt 0:06:13]} 12. Ne4 {[%emt 0:24:00]} Be7 {[%emt 0:00:06]} 13. Bxf6 {[%emt 0:00:08]} Bxf6 {[%emt 0:00:10]} 14. Qb3 {[%emt 0:00:19]} Re8 {[%emt 0:21:23]} 15. h3 {[%emt 0:16:21]} Rxe4 {[%emt 0:17:17]} 16. hxg4 {[%emt 0:00:09]} Na5 {[%emt 0:00:18]} 17. Qb5 {[%emt 0:06:59]} a6 {[%emt 0:03:36]} 18. Qf5 {[%emt 0:00:39]} Re6 {[%emt 0:07:06]} 19. g5 {[%emt 0:12:03]} g6 {[%emt 0:00:09]} 20. Qf4 {[%emt 0:01:06]} Bg7 {[%emt 0:00:17]} 21. Rad1 {[%emt 0:00:08]} Nc6 {[%emt 0:07:13]} 22. e3 {[%emt 0:03:01]} Rd6 {[%emt 0:06:02]} 23. Rd2 {[%emt 0:00:32]} d3 {[%emt 0:02:47]} 24. Rfd1 {[%emt 0:00:11]} Qe7 {[%emt 0:00:57]} 25. Rxd3 {[%emt 0:06:36]} Rxd3 {[%emt 0:00:09]} 26. Rxd3 {[%emt 0:00:03]} Bxb2 {[%emt 0:00:21]} 27. Rb3 {[%emt 0:01:51]} Ba3 {[%emt 0:03:59]} 28. Nd2 {[%emt 0:02:05]} Bd6 {[%emt 0:00:53]} 29. Qh4 {[%emt 0:00:15]} Be5 {[%emt 0:04:57]} 30. Ne4 {[%emt 0:00:10]} h5 {[%emt 0:03:14]} 31. gxh6 {[%emt 0:04:29]} Qxh4 {[%emt 0:00:05]} 32. gxh4 {[%emt 0:00:05]} Na5 {[%emt 0:01:05]} 33. Rd3 {[%emt 0:00:17]} Rc8 {[%emt 0:01:03]} 34. f4 {[%emt 0:00:58]} Bh8 {[%emt 0:01:42]} 35. Rd7 {[%emt 0:00:30]} Nc4 {[%emt 0:01:41]} 36. Kf2 {[%emt 0:01:11]} Re8 {[%emt 0:00:57]} 37. Rxb7 {[%emt 0:01:17]} Nxe3 {[%emt 0:01:12]} 38. Kxe3 {[%emt 0:05:03]} f5 {[%emt 0:00:04]} 39. Kd3 {[%emt 0:01:13]} Rd8+ {[%emt 0:00:05]} 40. Kc2 {[%emt 0:00:51]} fxe4 {[%emt 0:00:31]} 41. Bxe4 {[%emt 0:30:26]} Bf6 {[%emt 0:06:00]} 42. Rb6 {[%emt 0:00:00]} Kf7 {[%emt 0:03:55]} 43. Rxa6 {[%emt 0:00:00]} Rd4 {[%emt 0:00:24]} 44. h7 {[%emt 0:00:00]} Bh8 {[%emt 0:01:10]} 45. Bxg6+ {[%emt 0:00:00]} Kg7 {[%emt 0:00:03]} 46. Bd3 {[%emt 0:00:00]} Rxf4 {[%emt 0:03:35]} 47. Rg6+ {[%emt 0:00:00]} Kf7 {[%emt 0:00:04]} 48. Rg8 {[%emt 0:00:00]} Rf2+ {[%emt 0:00:25]} 49. Kb3 {[%emt 0:00:00]} 1-0

[Event "Marienbad B2-IM 2024"]
[Site "Marianske Lazne"]
[Date "2024.01.16"]
[Round "4.19"]
[White "Lima, Darcy"]
[Black "Plischki, Sebastian"]
[Result "1-0"]
[ECO "A13"]
[WhiteElo "2370"]
[BlackElo "2345"]
[Annotator "TA"]
[PlyCount "55"]
[EventDate "2024.01.10"]
[EventType "tourn"]
[EventCountry "CZE"]
[SourceTitle "playchess.com"]
[Source "ChessBase"]
[SourceQuality "1"]
[TimeControl "40/5400+30:1800+30"]

{[%evp 9,55,0,9,16,19,26,13,16,18,18,18,0,21,19,19,11,28,0,20,18,24,3,43,37,39,30,68,61,52,63,89,84,101,91,75,16,19,22,25,0,0,0,264,252,416,423,29984,1166]} 1. c4 {[%emt 0:00:01]} e6 {[%emt 0:00:19]} 2. Nf3 {[%emt 0:00:21]} d5 {[%emt 0:00:33]} 3. g3 {[%emt 0:00:06]} d4 {[%emt 0:00:33]} 4. Bg2 {[%emt 0:01:32]} Nc6 {[%emt 0:00:15]} 5. O-O {[%emt 0:00:38]} Bc5 {[%emt 0:00:39]} 6. d3 {[%emt 0:01:01] A13: English Opening: 1...e6.} Nf6 {[%emt 0:00:31]} 7. Nbd2 {[%emt 0:00:15]} a5 {[%emt 0:01:03]} 8. Nb3 {[%emt 0:06:30] Inhibits e5. The position is equal.} Be7 {[%emt 0:00:28]} 9. e3 {[%emt 0:00:04]} dxe3 {[%emt 0:00:14]} 10. Bxe3 {[%emt 0:00:29]} Ng4 {[%emt 0:01:02]} 11. Bc5 {[%emt 0:00:51]} O-O {[%emt 0:04:52]} 12. Bxe7 {[%emt 0:20:52]} Qxe7 {[%emt 0:01:53]} 13. a4 {[%emt 0:01:22] [#]} Qb4 $146 {[%emt 0:11:29]} ({Predecessor:} 13... e5 14. Re1 f6 15. d4 Rd8 16. Qe2 Qb4 17. Ra3 exd4 18. Nfxd4 Nxd4 19. Nxd4 Rxd4 {0-1 Jacobsen,M (2261)-Albornoz Cabrera,C (2585) Figueira da Foz op 17th 2023 (4)}) 14. Qc2 {[%emt 0:02:13]} e5 {[%emt 0:02:31]} 15. Rfe1 {[%emt 0:03:39]} f6 {[%emt 0:07:11]} 16. h3 {[%emt 0:11:16]} Nh6 {[%emt 0:00:14]} 17. d4 {[%emt 0:00:07][%cal Rd4e5]} exd4 {[%emt 0:18:48]} 18. Nfxd4 {[%emt 0:02:42]} Nxd4 {[%emt 0:00:09]} 19. Nxd4 {[%emt 0:00:03]} c6 {[%emt 0:00:44]} 20. Rad1 {[%emt 0:12:19] [#] aiming for c5.} Bd7 {[%emt 0:02:59]} 21. Re3 {[%emt 0:00:33] Hoping for c5.} Rad8 {[%emt 0:13:31]} 22. Red3 {[%emt 0:12:32] White is more active.} (22. Rb3 $16 Qxa4 23. Rxb7 Qxc2 24. Nxc2) 22... Nf7 $11 {[%emt 0:01:23][%cal Bh6f7,Bf7e5,Be5d3][%mdl 32]} 23. c5 {[%emt 0:05:53]} Ne5 {[%emt 0:08:36]} 24. Ne6 {[%emt 0:03:48][%mdl 64] [#] Double Attack} Nxd3 {[%emt 0:01:19]} 25. Nxd8 {[%emt 0:01:42]} Bf5 {[%emt 0:07:35][%mdl 8192]} (25... Ne1 $11 {and Black stays safe.} 26. Qc1 Rxd8 27. Rxe1 Bf5) 26. Rxd3 {[%emt 0:00:39]} Bxd3 {[%emt 0:07:54]} (26... Re8 {was necessary.} 27. Bf3 g6) 27. Qxd3 $18 {[%emt 0:00:01]} Qxa4 {[%emt 0:00:25]} (27... Qe1+ $18 28. Kh2 h6 29. Qb3+ Kh8) 28. Ne6 {[%emt 0:04:30] Weighted Error Value: White=0.09 (flawless) /Black=0.62} (28. Bd5+ $142 Kh8 29. Nf7+ (29. Nxb7 cxd5 30. Qxd5 Qc2 $11) 29... Rxf7 30. Bxf7 g6 31. Be6 Kg7 32. Qd7+ Kh6 33. Bg8) 1-0

[Event "Marienbad B2-IM 2024"]
[Site "Marianske Lazne"]
[Date "2024.01.16"]
[Round "4.20"]
[White "Kejna, Piotr"]
[Black "Lim, Zhuo Ren"]
[Result "1-0"]
[ECO "B90"]
[WhiteElo "2269"]
[BlackElo "2218"]
[Annotator "NA RC"]
[PlyCount "65"]
[EventDate "2024.01.10"]
[EventType "tourn"]
[EventCountry "CZE"]
[SourceTitle "playchess.com"]
[Source "ChessBase"]
[SourceQuality "1"]
[TimeControl "40/5400+30:1800+30"]

1. e4 {[%emt 0:00:01]} c5 {[%emt 0:11:13]} 2. Nf3 {[%emt 0:00:04]} d6 {[%emt 0:00:09]} 3. d4 {[%emt 0:00:05]} cxd4 {[%emt 0:00:05]} 4. Nxd4 {[%emt 0:00:02]} Nf6 {[%emt 0:00:09]} 5. Nc3 {[%emt 0:00:05]} a6 {[%emt 0:00:05]} 6. Be3 {[%emt 0:00:14]} e5 {[%emt 0:00:10]} 7. Nb3 {[%emt 0:00:05]} Be6 {[%emt 0:00:09]} 8. Be2 {[%emt 0:00:36]} Be7 {[%emt 0:00:36]} 9. O-O {[%emt 0:01:29]} O-O {[%emt 0:00:10]} 10. a4 {[%emt 0:00:58]} Nc6 {[%emt 0:01:10]} 11. Qd2 {[%emt 0:02:13]} h6 {[%emt 0:01:55]} 12. Rad1 {[%emt 0:11:43]} Re8 {[%emt 0:04:28]} 13. Kh1 {[%emt 0:02:13]} Rc8 {[%emt 0:01:44]} 14. f4 {[%emt 0:02:33]} Na5 {[%emt 0:11:32]} 15. Nxa5 {[%emt 0:05:32]} Qxa5 {[%emt 0:00:05]} 16. f5 {[%emt 0:12:01]} Bc4 {[%emt 0:01:13]} 17. Bxc4 {[%emt 0:02:30]} Rxc4 {[%emt 0:00:04]} 18. Bxh6 {[%emt 0:04:33]} Rxc3 {[%emt 0:04:02]} 19. Qg5 {[%emt 0:08:28]} Bf8 {[%emt 0:00:35]} 20. bxc3 {[%emt 0:01:24]} Nxe4 {[%emt 0:00:23]} 21. Qh4 {[%emt 0:14:35]} d5 {[%emt 0:29:52]} 22. c4 {[%emt 0:07:38]} gxh6 {[%emt 0:00:36]} 23. Rxd5 {[%emt 0:01:47]} Nc5 {[%emt 0:00:08]} 24. f6 {[%emt 0:02:57]} b6 {[%emt 0:09:33]} 25. Qg4+ {[%emt 0:00:33]} Kh8 {[%emt 0:00:16]} 26. Qh5 {[%emt 0:00:34]} Kg8 {[%emt 0:01:16]} 27. Qg6+ {[%emt 0:00:19]} Kh8 {[%emt 0:00:48]} 28. Qxf7 {[%emt 0:00:09]} Qxa4 {[%emt 0:00:18]} 29. Rxe5 {[%emt 0:00:34]} Rd8 {[%emt 0:01:21]} 30. Rg5 {[%emt 0:04:31]} hxg5 {[%emt 0:00:22]} 31. Qh5+ {[%emt 0:00:09]} Kg8 {[%emt 0:00:03]} 32. Qg6+ {[%emt 0:00:17]} Kh8 {[%emt 0:00:03]} 33. f7 {[%emt 0:00:52]} 1-0

[Event "Marienbad B2-IM 2024"]
[Site "Marianske Lazne"]
[Date "2024.01.16"]
[Round "5.16"]
[White "Lim, Zhuo Ren"]
[Black "Wang, Yukun"]
[Result "1/2-1/2"]
[ECO "D52"]
[WhiteElo "2218"]
[BlackElo "2117"]
[Annotator "RC"]
[PlyCount "111"]
[EventDate "2024.01.10"]
[EventType "tourn"]
[EventCountry "CZE"]
[SourceTitle "playchess.com"]
[Source "ChessBase"]
[SourceQuality "1"]
[TimeControl "40/5400+30:1800+30"]

1. d4 {[%emt 0:00:06]} d5 {[%emt 0:00:13]} 2. c4 {[%emt 0:00:06]} c6 {[%emt 0:00:23]} 3. Nf3 {[%emt 0:00:07]} Nf6 {[%emt 0:00:04]} 4. Nc3 {[%emt 0:00:06]} e6 {[%emt 0:00:03]} 5. Bg5 {[%emt 0:00:23]} Nbd7 {[%emt 0:02:01]} 6. e3 {[%emt 0:00:10]} Be7 {[%emt 0:00:49]} 7. Qc2 {[%emt 0:00:10]} O-O {[%emt 0:00:36]} 8. Rd1 {[%emt 0:00:07]} b6 {[%emt 0:08:13]} 9. cxd5 {[%emt 0:00:21]} cxd5 {[%emt 0:01:36]} 10. Bd3 {[%emt 0:00:11]} Bb7 {[%emt 0:04:23]} 11. O-O {[%emt 0:00:28]} Rc8 {[%emt 0:01:17]} 12. Qe2 {[%emt 0:08:11]} Ne4 {[%emt 0:04:57]} 13. Bxe7 {[%emt 0:00:13]} Qxe7 {[%emt 0:00:15]} 14. Bxe4 {[%emt 0:02:27]} dxe4 {[%emt 0:00:07]} 15. Nd2 {[%emt 0:00:09]} f5 {[%emt 0:07:35]} 16. Rc1 {[%emt 0:00:42]} e5 {[%emt 0:02:08]} 17. dxe5 {[%emt 0:11:16]} Nxe5 {[%emt 0:00:39]} 18. Qb5 {[%emt 0:00:28]} Rfd8 {[%emt 0:05:37]} 19. Nb3 {[%emt 0:01:43]} Bc6 {[%emt 0:04:26]} 20. Qe2 {[%emt 0:01:06]} Nd3 {[%emt 0:10:18]} 21. Rcd1 {[%emt 0:03:30]} Bb7 {[%emt 0:02:17]} 22. Nd4 {[%emt 0:01:26]} f4 {[%emt 0:03:39]} 23. Qg4 {[%emt 0:02:29]} Nxb2 {[%emt 0:03:00]} 24. Rb1 {[%emt 0:08:31]} Nc4 {[%emt 0:05:28]} 25. Rbc1 {[%emt 0:13:31]} f3 {[%emt 0:07:17]} 26. Ncb5 {[%emt 0:09:58]} fxg2 {[%emt 0:09:07]} 27. Rfd1 {[%emt 0:00:59]} Ne5 {[%emt 0:00:38]} 28. Qe6+ {[%emt 0:04:46]} Qxe6 {[%emt 0:01:46]} 29. Nxe6 {[%emt 0:00:03]} Rxd1+ {[%emt 0:02:19]} 30. Rxd1 {[%emt 0:00:03]} Ba6 {[%emt 0:03:03]} 31. a4 {[%emt 0:00:07]} Nd3 {[%emt 0:01:58]} 32. Kxg2 {[%emt 0:01:27]} Rc2 {[%emt 0:00:11]} 33. Kg3 {[%emt 0:00:27]} Ra2 {[%emt 0:02:35]} 34. Nc3 {[%emt 0:01:45]} Rxf2 {[%emt 0:01:00]} 35. Nxe4 {[%emt 0:00:05]} Re2 {[%emt 0:00:24]} 36. Kf3 {[%emt 0:01:40]} Ne5+ {[%emt 0:03:24]} 37. Kf4 {[%emt 0:00:29]} Nd3+ {[%emt 0:00:13]} 38. Kf3 {[%emt 0:00:10]} Ra2 {[%emt 0:00:28]} 39. Kg3 {[%emt 0:01:41]} Rxa4 {[%emt 0:01:46]} 40. Rf1 {[%emt 0:00:15]} h6 {[%emt 0:00:10]} 41. Rf8+ {[%emt 0:30:47]} Kh7 {[%emt 0:30:01]} 42. Nd6 {[%emt 0:00:39]} h5 {[%emt 0:04:34]} 43. e4 {[%emt 0:02:52]} Bc4 {[%emt 0:00:00]} 44. Ng5+ {[%emt 0:00:00]} Kg6 {[%emt 0:00:00]} 45. h4 {[%emt 0:00:00]} Ne5 {[%emt 0:00:00]} 46. Kf4 {[%emt 0:00:00]} Nd7 {[%emt 0:00:00]} 47. Rc8 {[%emt 0:00:00]} Ba6 {[%emt 0:00:00]} 48. Rc7 {[%emt 0:00:00]} Nf6 {[%emt 0:00:00]} 49. Rxa7 {[%emt 0:00:00]} Ra1 {[%emt 0:00:00]} 50. Nf5 {[%emt 0:00:00]} Rf1+ {[%emt 0:00:00]} 51. Nf3 {[%emt 0:00:00]} Nxe4 {[%emt 0:00:00]} 52. Rxa6 {[%emt 0:00:00]} Rxf3+ {[%emt 0:00:00]} 53. Kxf3 {[%emt 0:00:00]} Kxf5 {[%emt 0:00:00]} 54. Rxb6 {[%emt 0:00:00]} Nd2+ {[%emt 0:00:00]} 55. Ke2 {[%emt 0:00:00]} Ne4 {[%emt 0:00:25]} 56. Kf3 {[%emt 0:00:00]} 1/2-1/2

[Event "Marienbad B2-IM 2024"]
[Site "Marianske Lazne"]
[Date "2024.01.16"]
[Round "5.17"]
[White "Plischki, Sebastian"]
[Black "Kejna, Piotr"]
[Result "1/2-1/2"]
[ECO "A30"]
[WhiteElo "2345"]
[BlackElo "2269"]
[Annotator "TA"]
[PlyCount "38"]
[EventDate "2024.01.10"]
[EventType "tourn"]
[EventCountry "CZE"]
[SourceTitle "playchess.com"]
[Source "ChessBase"]
[SourceQuality "1"]
[TimeControl "40/5400+30:1800+30"]

{[%evp 23,38,45,68,25,45,42,57,39,47,54,79,61,60,61,80,46,94]} 1. Nf3 {[%emt 0:00:24]} Nf6 {[%emt 0:00:06]} 2. c4 {[%emt 0:00:07]} e6 {[%emt 0:00:30]} 3. g3 {[%emt 0:00:17]} b6 {[%emt 0:03:18]} 4. Bg2 {[%emt 0:00:24]} Bb7 {[%emt 0:00:08]} 5. O-O {[%emt 0:00:32]} c5 {[%emt 0:02:04]} 6. Nc3 {[%emt 0:00:17]} Be7 {[%emt 0:02:22]} 7. d4 {[%emt 0:01:25]} cxd4 {[%emt 0:02:21]} 8. Qxd4 {[%emt 0:00:10]} O-O {[%emt 0:01:33]} 9. Rd1 {[%emt 0:02:00]} Nc6 {[%emt 0:01:21]} 10. Qf4 {[%emt 0:01:20]} d6 {[%emt 0:10:13]} 11. b3 {[%emt 0:03:30]} Qb8 {[%emt 0:10:56]} 12. Bb2 {[%emt 0:03:16]} Rd8 {[%emt 0:02:09]} 13. h3 {[%emt 0:17:16] White is much more active. A30: Symmetrical English: Double Fianchetto and Hedgehog.} Rd7 {[%emt 0:08:59] [#]} 14. e4 $146 {[%emt 0:08:33]} ({Predecessor:} 14. Rd2 Ne5 15. Rad1 Nxf3+ 16. Bxf3 Bxf3 17. Qxf3 Qf8 18. Nb5 Rc8 19. Bxf6 gxf6 20. Qf4 Rc6 {1-0 Petrosyan,T (2416)-Kirjakov,T (2216) Albena Masters op 2014 (6)}) 14... Ne5 {[%emt 0:12:41]} 15. Qe3 {[%emt 0:02:01]} Nxf3+ {[%emt 0:02:38]} 16. Bxf3 {[%emt 0:01:05]} Qc7 {[%emt 0:03:24]} 17. Bg2 {[%emt 0:02:51]} Rad8 {[%emt 0:01:48]} 18. Rac1 {[%emt 0:08:32]} Qb8 {[%emt 0:00:59]} 19. Qe2 {[%emt 0:02:40]} Qa8 {[%emt 0:02:30] Weighted Error Value: White=0.18 (very precise) /Black=0.12 (very precise)} (19... Rc8 $14 {deserves consideration.}) 1/2-1/2

[Event "Marienbad B2-IM 2024"]
[Site "Marianske Lazne"]
[Date "2024.01.16"]
[Round "5.18"]
[White "Luberanski, Jakub"]
[Black "Lima, Darcy"]
[Result "0-1"]
[ECO "C65"]
[WhiteElo "2278"]
[BlackElo "2370"]
[Annotator "TA"]
[PlyCount "48"]
[EventDate "2024.01.10"]
[EventType "tourn"]
[EventCountry "CZE"]
[SourceTitle "playchess.com"]
[Source "ChessBase"]
[SourceQuality "1"]
[TimeControl "40/5400+30:1800+30"]

{[%evp 11,48,2,0,0,14,-11,-12,-14,-24,-29,-38,-50,-37,-122,-128,-133,-140,-155,-175,-158,-140,-396,-391,-889,-892,-1045,-1054,-1344,-1343,-1124,-1336,-1317,-1260,-1152,-1187,-29993,-2148,-4118,-3548]} 1. e4 {[%emt 0:00:05]} e5 {[%emt 0:00:13]} 2. Nf3 {[%emt 0:00:08]} Nc6 {[%emt 0:00:05]} 3. Bb5 {[%emt 0:00:03]} Nf6 {[%emt 0:05:15]} 4. O-O {[%emt 0:02:12]} Bc5 {[%emt 0:00:03]} 5. d3 {[%emt 0:03:09]} Nd4 {[%emt 0:00:14]} 6. Nxd4 {[%emt 0:05:19]} Bxd4 {[%emt 0:00:03]} 7. c3 {[%emt 0:00:11] C65: Ruy Lopez: Berlin Defence (3...Nf6), unusual lines and 4 0-0 Bc5.} Bb6 {[%emt 0:00:18]} 8. Bg5 {[%emt 0:03:29] 8.Ba4 is the recent fashion.} h6 {[%emt 0:02:14][%cal Bh7h6,Bh6h5,Bh5h4,Bh4g3][%mdl 32]} 9. Bh4 {[%emt 0:00:05] The position is equal.} c6 {[%emt 0:00:08]} 10. Ba4 {[%emt 0:00:03]} g5 {[%emt 0:02:56]} 11. Bg3 {[%emt 0:00:03]} d6 {[%emt 0:00:08] Threatens to win with ...h5.} 12. Kh1 {[%emt 0:09:10]} ({Better is} 12. Qd2 $1 $15) 12... h5 $1 $17 {[%emt 0:05:48] ...h4 would be deadly.} 13. f3 {[%emt 0:00:38]} h4 $36 {[%emt 0:01:12][%mdl 2048] Black has strong initiative.} 14. Bf2 {[%emt 0:03:01]} Nh5 {[%emt 0:02:07][%cal Oh5g3]} 15. Kg1 {[%emt 0:01:38] [#]} Ng3 $146 {[%emt 0:26:21]} ({Predecessor:} 15... Bd7 16. d4 Qf6 17. Na3 Nf4 18. Nc4 Bc7 19. Ne3 O-O-O 20. d5 Bb6 21. dxc6 bxc6 {½-½ Kveinys,A (2435)-Kaim,P (2300) Polanica Zdroj op 1991}) 16. hxg3 $4 {[%emt 0:08:28][%mdl 8192] This costs White the game.} (16. Re1 $17 {was worth a try.}) 16... hxg3 $19 {[%emt 0:00:25][%mdl 64] Pin} 17. Bxb6 $2 {[%emt 0:00:03] [#]} (17. d4 gxf2+ 18. Kxf2) 17... Qf6 $1 {[%emt 0:03:11]} (17... Qxb6+ 18. d4 g4 19. Re1 $11 (19. fxg4 $2 {is the wrong capture.} Qd8 $19)) 18. Re1 {[%emt 0:00:06]} axb6 {[%emt 0:02:06]} 19. Kf1 {[%emt 0:00:50]} Rh2 {[%emt 0:00:53][%cal Oc8h3]} 20. d4 {[%emt 0:04:54] [#]} Bh3 $1 {[%emt 0:12:23][%mdl 576] Promotion} 21. Ke2 {[%emt 0:00:29]} Bxg2 {[%emt 0:00:35][%cal Og2f1] ( -> ...Bf1+!)} 22. Kd3 {[%emt 0:00:04]} Bxf3 {[%emt 0:00:31]} ({Stronger than} 22... Qxf3+ 23. Qxf3 Bxf3 24. Bb3 $11) 23. Qb3 {[%emt 0:02:19] [#]} Be2+ $1 {[%emt 0:08:09][%mdl 512]} 24. Rxe2 {[%emt 0:02:15]} (24. Kc2 Bb5+) 24... Qf3+ {[%emt 0:00:08] Ingenious play by Lima!   Weighted Error Value: White=1.58/Black=0.22 (precise)} 0-1

[Event "Marienbad B2-IM 2024"]
[Site "Marianske Lazne"]
[Date "2024.01.16"]
[Round "5.19"]
[White "Pavlis, Matej"]
[Black "Ivanov, Mike"]
[Result "0-1"]
[ECO "A04"]
[WhiteElo "2088"]
[BlackElo "2356"]
[Annotator "RC"]
[PlyCount "94"]
[EventDate "2024.01.10"]
[EventType "tourn"]
[EventCountry "CZE"]
[SourceTitle "playchess.com"]
[Source "ChessBase"]
[SourceQuality "1"]
[TimeControl "40/5400+30:1800+30"]

1. Nf3 {[%emt 0:00:02]} Nc6 {[%emt 0:00:09]} 2. d4 {[%emt 0:00:16]} d5 {[%emt 0:00:16]} 3. g3 {[%emt 0:00:27]} Bf5 {[%emt 0:00:16]} 4. Bg2 {[%emt 0:00:06]} e6 {[%emt 0:00:14]} 5. O-O {[%emt 0:00:08]} Nb4 {[%emt 0:00:16]} 6. Na3 {[%emt 0:00:16]} Nc6 {[%emt 0:00:19]} 7. Nb1 {[%emt 0:04:54]} Nb4 {[%emt 0:02:14]} 8. Na3 {[%emt 0:00:08]} Be7 {[%emt 0:00:30]} 9. c4 {[%emt 0:00:52]} Nf6 {[%emt 0:09:49]} 10. Qb3 {[%emt 0:07:56]} a5 {[%emt 0:07:47]} 11. Bd2 {[%emt 0:05:36]} a4 {[%emt 0:01:22]} 12. Qd1 {[%emt 0:00:28]} Ne4 {[%emt 0:09:22]} 13. Bxb4 {[%emt 0:04:20]} Bxb4 {[%emt 0:00:03]} 14. Nc2 {[%emt 0:00:10]} Be7 {[%emt 0:00:55]} 15. Ne3 {[%emt 0:00:07]} Bg6 {[%emt 0:00:25]} 16. Ne5 {[%emt 0:03:43]} O-O {[%emt 0:02:55]} 17. Nxg6 {[%emt 0:00:51]} hxg6 {[%emt 0:00:07]} 18. Qd3 {[%emt 0:05:46]} Bf6 {[%emt 0:08:34]} 19. Rad1 {[%emt 0:14:59]} c5 {[%emt 0:04:33]} 20. cxd5 {[%emt 0:00:48]} exd5 {[%emt 0:00:07]} 21. dxc5 {[%emt 0:00:17]} Nxc5 {[%emt 0:00:21]} 22. Qc2 {[%emt 0:07:09]} Rc8 {[%emt 0:03:09]} 23. Nxd5 {[%emt 0:05:23]} Re8 {[%emt 0:00:19]} 24. Bh3 {[%emt 0:05:28]} Rc6 {[%emt 0:02:59]} 25. Nc3 {[%emt 0:07:11]} Qb6 {[%emt 0:04:14]} 26. Bg2 {[%emt 0:00:37]} Rcc8 {[%emt 0:01:23]} 27. Bd5 {[%emt 0:01:29]} Ne6 {[%emt 0:08:26]} 28. Qxa4 {[%emt 0:05:00]} Qxb2 {[%emt 0:02:35]} 29. Ne4 {[%emt 0:00:50]} Be5 {[%emt 0:04:53]} 30. Rb1 {[%emt 0:05:56]} Qxe2 {[%emt 0:05:01]} 31. Rxb7 {[%emt 0:00:07]} Rcd8 {[%emt 0:00:11]} 32. Qb3 {[%emt 0:11:38]} Qg4 {[%emt 0:10:40]} 33. f3 {[%emt 0:00:32]} Qf5 {[%emt 0:02:55]} 34. Kg2 {[%emt 0:00:42]} g5 {[%emt 0:03:32]} 35. Nf2 {[%emt 0:01:16]} Bd4 {[%emt 0:01:10]} 36. Be4 {[%emt 0:00:36]} Qa5 {[%emt 0:00:18]} 37. Rb5 {[%emt 0:00:37]} Qd2 {[%emt 0:01:39]} 38. a4 {[%emt 0:01:12]} Nc5 {[%emt 0:01:54]} 39. Qd1 {[%emt 0:00:43]} Nxe4 {[%emt 0:00:34]} 40. fxe4 {[%emt 0:00:03]} Qa2 {[%emt 0:00:17]} 41. Qf3 {[%emt 0:05:47]} Bf6 {[%emt 0:08:30]} 42. a5 {[%emt 0:01:15]} Rd2 {[%emt 0:01:16]} 43. Rf5 {[%emt 0:02:27]} Bd4 {[%emt 0:04:35]} 44. Rxg5 {[%emt 0:08:05]} Rc8 {[%emt 0:03:44]} 45. e5 {[%emt 0:07:23]} g6 {[%emt 0:10:34]} 46. Rg4 {[%emt 0:09:03]} Bxf2 {[%emt 0:01:16]} 47. Kh3 {[%emt 0:00:49]} Bg1 {[%emt 0:01:03]} 0-1

[Event "Marienbad B2-IM 2024"]
[Site "Marianske Lazne"]
[Date "2024.01.16"]
[Round "5.20"]
[White "Balinski, Damian"]
[Black "Pisk, Petr"]
[Result "1/2-1/2"]
[ECO "D26"]
[WhiteElo "2226"]
[BlackElo "2295"]
[Annotator "NA RC"]
[PlyCount "30"]
[EventDate "2024.01.10"]
[EventType "tourn"]
[EventCountry "CZE"]
[SourceTitle "playchess.com"]
[Source "ChessBase"]
[SourceQuality "1"]
[TimeControl "40/5400+30:1800+30"]

1. d4 {[%emt 0:00:04]} d5 {[%emt 0:00:39]} 2. c4 {[%emt 0:00:02]} dxc4 {[%emt 0:00:27]} 3. Nf3 {[%emt 0:00:21]} Nf6 {[%emt 0:00:33]} 4. e3 {[%emt 0:00:03]} e6 {[%emt 0:00:47]} 5. Bxc4 {[%emt 0:00:03]} c5 {[%emt 0:00:53]} 6. Qe2 {[%emt 0:00:09]} cxd4 {[%emt 0:03:07]} 7. exd4 {[%emt 0:00:02]} Be7 {[%emt 0:00:36]} 8. O-O {[%emt 0:00:18]} Nc6 {[%emt 0:00:17]} 9. Rd1 {[%emt 0:00:19]} O-O {[%emt 0:00:12]} 10. Nc3 {[%emt 0:00:03]} Na5 {[%emt 0:02:59]} 11. Bd3 {[%emt 0:00:18]} b6 {[%emt 0:00:20]} 12. Bg5 {[%emt 0:00:29]} Bb7 {[%emt 0:01:25]} 13. Rac1 {[%emt 0:00:05]} Rc8 {[%emt 0:05:29]} 14. Ne5 {[%emt 0:01:26]} Nd5 {[%emt 0:03:52]} 15. Qh5 f5 1/2-1/2